bitfinex/quotes_ETHUSD_20240614
["timestamp","ask_amount","ask_price","bid_price","bid_amount"]
[1718384430389,2.93714,3404.7,3403.8,5.61404514]
[1718384430594,2.93694,3404.9,3403.8,6.17544965]
[1718384431113,2.93703,3404.8,3403.8,6.17544965]
[1718384431589,0.293678,3405.0,3403.8,1.43344514]
[1718384431804,2.93716,3404.7,3403.1,3.0]
[1718384431950,2.93716,3404.7,3403.2,1.43344514]
[1718384432303,2.93737,3404.4,3403.2,1.43344514]
[1718384432592,2.93679,3405.1,3403.3,1.49219818]
[1718384432789,2.93696,3404.9,3403.3,1.49219818]
[1718384433019,2.93686,3405.0,3403.4,1.58266496]
[1718384433160,2.9364,3405.6,3403.6,1.43344514]
[1718384433362,2.9364,3405.6,3403.7,0.05874133]
[1718384433363,2.93677,3405.1,3403.7,0.05874133]
[1718384433570,2.93677,3405.1,3403.8,1.98344514]
[1718384433873,2.93677,3405.1,3403.9,0.05874134]
[1718384434074,0.587344,3405.0,3404.0,1.43344514]
[1718384434277,0.587344,3405.0,3404.1,0.05874134]
[1718384434477,0.587344,3405.0,3404.2,1.43344514]
[1718384434777,0.587344,3405.0,3404.3,0.05874135]
[1718384434989,0.587344,3405.0,3404.3,1.49218649]
[1718384435302,2.93667,3405.3,3404.4,1.43344514]
[1718384435472,2.93618,3405.8,3404.4,1.43344514]
[1718384435672,2.93651,3405.4,3404.4,1.43344514]
[1718384435899,2.93659,3405.3,3404.4,1.43344514]
[1718384436600,2.93668,3405.2,3404.4,1.43344514]
[1718384436810,0.587302,3405.3,3404.4,1.43344514]
[1718384436811,3.523902,3405.3,3404.4,1.43344514]
[1718384437142,3.523902,3405.3,3404.5,0.0587381]
[1718384437270,3.523902,3405.3,3404.5,1.49218324]
[1718384437271,2.93674,3405.2,3404.5,1.49218324]
[1718384437979,3.523902,3405.3,3404.5,1.49218324]
[1718384439391,0.587302,3405.3,3404.5,1.49218324]
[1718384439699,2.93615,3405.9,3404.6,1.43344514]
[1718384439949,2.93624,3405.8,3404.7,0.05872966]
[1718384440122,2.93653,3405.4,3404.2,3.0]
[1718384440447,2.93653,3405.4,3404.3,1.43344514]
[1718384440730,0.587295,3405.3,3404.3,1.43344514]
[1718384441082,3.523905,3405.3,3404.3,1.43344514]
[1718384441283,2.93614,3405.9,3404.3,1.43344514]
[1718384441585,3.388,3406.1,3404.4,0.55]
[1718384441586,2.93634,3405.6,3404.4,0.55]
[1718384441786,2.93644,3405.5,3404.5,1.43344514]
[1718384442221,2.93651,3405.4,3404.5,1.43344514]
[1718384442902,2.93644,3405.5,3404.5,1.43344514]
[1718384443090,3.817335,3405.5,3404.5,1.43344514]
[1718384443491,2.93654,3405.4,3404.5,1.43344514]
[1718384443715,3.817315,3405.5,3404.5,1.43344514]
[1718384444489,2.9366,3405.3,3404.5,1.43344514]
[1718384444887,2.93652,3405.4,3404.5,1.43344514]
[1718384445122,3.9055365,3405.4,3404.5,1.43344514]
[1718384446225,2.93652,3405.4,3404.5,1.43344514]
[1718384446429,2.93625,3405.7,3404.6,0.05873454]
[1718384446591,2.93625,3405.7,3404.7,1.43344514]
[1718384446925,2.93625,3405.7,3404.8,0.05873179]
[1718384447230,2.93625,3405.7,3404.9,1.43344514]
[1718384447431,2.93575,3406.3,3405.0,2.32973179]
[1718384447729,3.094,3407.0,3405.0,2.32973179]
[1718384447730,2.93556,3406.6,3405.1,1.43344514]
[1718384447894,2.93556,3406.6,3405.2,0.05871887]
[1718384447895,2.93566,3406.4,3405.2,0.05871887]
[1718384448095,3.56874234,3406.4,3405.3,2.10976154]
[1718384448291,3.56874234,3406.4,3405.4,0.05871888]
[1718384448499,3.56874234,3406.4,3405.5,1.43344514]
[1718384449608,3.56874234,3406.4,3405.6,0.05871889]
[1718384449930,3.56874234,3406.4,3405.6,1.49216403]
[1718384450088,0.63308234,3406.4,3405.6,1.49216403]
[1718384450716,0.63308234,3406.4,3405.7,1.43344514]
[1718384451419,0.35686423,3406.3,3405.0,2.271]
[1718384451733,0.35686423,3406.3,3405.0,3.70444514]
[1718384451904,2.93625,3405.7,3405.0,3.70444514]
[1718384452700,0.35686423,3406.3,3405.0,2.271]
[1718384452901,2.93641,3405.6,3404.0,2.2701]
[1718384453101,2.93643,3405.5,3404.3,1.43344514]
[1718384453297,2.93626,3405.7,3404.3,1.43344514]
[1718384453913,2.93591,3406.1,3404.4,3.94334514]
[1718384454208,2.93591,3406.1,3404.5,3.0]
[1718384454209,2.93609,3405.9,3404.5,3.0]
[1718384454528,2.93609,3405.9,3404.6,1.43344514]
[1718384454839,2.93609,3405.9,3404.7,0.74933451]
[1718384454840,3.52329,3405.9,3404.7,0.74933451]
[1718384455138,3.52329,3405.9,3404.8,1.43344514]
[1718384455326,3.52329,3405.9,3404.7,0.74933451]
[1718384455327,0.45960342,3406.7,3405.0,1.43344514]
[1718384455527,2.93582,3406.2,3405.0,4.43344514]
[1718384455739,2.93601,3406.0,3405.0,4.43344514]
[1718384455902,2.93601,3406.0,3405.0,5.19692311]
[1718384456218,2.93601,3406.0,3405.1,0.05872502]
[1718384456413,2.93601,3406.0,3405.2,1.43344514]
[1718384456621,2.93591,3406.1,3405.2,1.43344514]
[1718384457182,2.93591,3406.1,3405.3,0.058725]
[1718384457300,2.93591,3406.1,3405.3,1.49217014]
[1718384457644,2.936,3406.0,3405.3,1.49217014]
[1718384457848,2.93608,3405.9,3404.9,2.452]
[1718384457999,2.93634,3405.6,3404.9,3.88544514]
[1718384458712,2.93666,3405.3,3404.5,3.0]
[1718384458920,2.93659,3405.3,3404.6,1.43344514]
[1718384459098,2.93683,3405.1,3404.1,0.72393187]
[1718384459303,2.93631,3405.7,3404.2,1.43344514]
[1718384459525,2.93653,3405.4,3404.2,1.43344514]
[1718384459724,2.93681,3405.1,3404.2,1.43344514]
[1718384459923,2.937,3404.9,3404.2,1.43344514]
[1718384460202,2.93625,3405.7,3403.9,2.3224]
[1718384460203,6.03025,3405.7,3403.9,2.3224]
[1718384460405,2.93735,3404.5,3403.9,3.75584514]
[1718384460715,3.388,3405.3,3403.9,1.43344514]
[1718384461041,2.93703,3404.8,3403.4,2.4591]
[1718384461339,2.93697,3404.9,3403.5,1.49219988]
[1718384461502,2.93731,3404.5,3403.5,1.49219988]
[1718384461704,2.93737,3404.4,3403.6,0.39512999]
[1718384461905,3.727725,3405.6,3403.7,1.43344514]
[1718384462200,2.93678,3405.1,3403.8,0.05874466]
[1718384462404,2.93677,3405.1,3403.9,1.43344514]
[1718384462631,3.727725,3405.6,3403.6,0.39512999]
[1718384462632,2.9374,3404.4,3403.6,0.39512999]
[1718384462844,2.9374,3404.4,3403.7,2.01886814]
[1718384463042,2.93713,3404.7,3403.5,3.0]
[1718384463208,2.537,3404.4,3403.6,1.43344514]
[1718384463543,2.537,3404.4,3403.4,2.4591]
[1718384463544,2.93758,3404.2,3403.4,2.4591]
[1718384463870,2.537,3404.4,3403.5,1.47358376]
[1718384464021,2.93709,3404.8,3403.6,0.05860982]
[1718384464022,2.537,3404.8,3403.6,0.05860982]
[1718384464203,5.47404,3404.8,3403.7,2.12856064]
[1718384464398,2.93712,3404.7,3403.8,0.05874817]
[1718384464748,5.47403,3404.8,3403.6,3.0]
[1718384464749,2.537,3404.8,3403.6,3.0]
[1718384464939,2.93758,3404.2,3403.6,1.43344514]
[1718384465102,2.93723,3404.6,3403.6,1.43344514]
[1718384465303,2.93731,3404.5,3403.6,1.43344514]
[1718384465551,2.93738,3404.4,3403.6,1.43344514]
[1718384465703,2.93728,3404.5,3403.6,1.43344514]
[1718384466331,2.93738,3404.4,3403.6,1.43344514]
[1718384466710,2.93746,3404.3,3403.6,1.43344514]
[1718384467617,0.9653071,3404.3,3403.4,2.4591]
[1718384467969,0.841121,3404.6,3402.5,2.2849]
[1718384467970,2.93799,3403.7,3402.5,2.2849]
[1718384468240,2.93815,3403.5,3402.6,1.43344514]
[1718384468545,2.93832,3403.3,3402.6,1.43344514]
[1718384468935,2.93825,3403.4,3402.6,1.43344514]
[1718384469254,3.77959,3403.4,3402.6,1.43344514]
[1718384469545,3.77959,3403.4,3402.6,4.43344514]
[1718384469705,0.84134,3403.4,3402.6,1.43344514]
[1718384469908,2.93816,3403.5,3402.6,1.43344514]
[1718384470122,2.93816,3403.5,3402.6,4.43344514]
[1718384470841,2.93823,3403.4,3402.6,1.43344514]
[1718384472817,2.93807,3403.6,3402.6,1.43344514]
[1718384472818,2.93816,3403.5,3402.6,1.43344514]
[1718384473017,2.93823,3403.4,3402.7,0.37183451]
[1718384473317,2.9384,3403.3,3402.7,1.43344514]
[1718384474844,2.93816,3403.5,3402.1,3.0]
[1718384475060,2.93901,3402.5,3402.2,1.43344514]
[1718384475213,2.93894,3402.6,3402.2,1.43344514]
[1718384475413,2.93894,3402.6,3402.0,2.3427]
[1718384475414,2.93905,3402.5,3402.0,2.3427]
[1718384475636,2.93905,3402.5,3402.1,1.43344514]
[1718384476034,2.93894,3402.6,3402.1,1.43344514]
[1718384476240,3.385,3403.4,3402.0,2.3427]
[1718384476241,2.93885,3402.7,3402.0,2.3427]
[1718384476679,2.93885,3402.7,3401.4,2.4617]
[1718384476970,2.93946,3402.0,3401.4,3.89514514]
[1718384477276,2.93938,3402.1,3401.4,3.89514514]
[1718384477567,2.93945,3402.0,3401.4,3.89514514]
[1718384477771,2.93945,3402.0,3401.4,4.28465965]
[1718384478571,2.93955,3401.9,3401.4,4.28465965]
[1718384478771,2.93928,3402.2,3401.4,4.28465965]
[1718384479145,2.93909,3402.5,3401.4,4.28465965]
[1718384479343,2.93885,3402.7,3401.4,4.28465965]
[1718384479546,2.93934,3402.2,3401.5,0.42846597]
[1718384479750,2.93945,3402.0,3401.5,0.42846597]
[1718384479947,2.93928,3402.2,3401.5,0.42846597]
[1718384480127,2.93936,3402.1,3401.5,0.42846597]
[1718384481437,2.9392,3402.3,3401.4,4.28465965]
[1718384481438,2.93949,3402.0,3401.4,2.4617]
[1718384481639,2.93979,3401.6,3400.4,2.4605]
[1718384481838,2.93994,3401.5,3400.5,1.43344514]
[1718384482050,2.9398,3401.6,3400.5,1.43344514]
[1718384482051,2.5021,3402.2,3400.6,0.38939451]
[1718384482378,2.5021,3402.2,3400.7,1.43344514]
[1718384482554,2.94002,3401.4,3400.7,1.43344514]
[1718384482878,2.94014,3401.2,3400.4,2.4605]
[1718384483165,2.94014,3401.2,3400.5,1.43344514]
[1718384483774,2.94006,3401.3,3400.5,1.43344514]
[1718384483969,2.93997,3401.4,3400.6,0.38939451]
[1718384484636,2.94006,3401.3,3400.6,0.38939451]
[1718384484838,2.94006,3401.3,3400.4,2.4605]
[1718384485138,2.94031,3401.0,3400.4,2.4605]
[1718384486071,2.94031,3401.0,3400.0,2.4673]
[1718384486273,2.94029,3401.1,3400.0,3.90074514]
[1718384486478,2.93999,3401.4,3400.1,1.88233551]
[1718384486649,2.94017,3401.2,3400.1,4.88233551]
[1718384486844,3.385,3401.8,3400.1,4.88233551]
[1718384487184,2.93971,3401.7,3400.1,4.88233551]
[1718384487737,2.93989,3401.5,3400.1,4.82351965]
[1718384488081,0.293989,3401.4,3400.1,4.43344514]
[1718384488297,2.94039,3400.9,3400.1,4.43344514]
[1718384488575,2.94031,3401.0,3400.1,4.43344514]
[1718384488728,2.94042,3400.9,3400.1,4.43344514]
[1718384489134,2.94051,3400.8,3400.1,3.0]
[1718384489336,2.94051,3400.8,3400.0,2.4673]
[1718384489578,2.94041,3400.9,3400.1,0.24673]
[1718384489754,2.94041,3400.9,3400.1,3.24673]
[1718384491072,2.9405,3400.8,3400.1,3.24673]
[1718384492352,2.94041,3400.9,3400.1,3.24673]
[1718384492681,2.94004,3401.4,3400.2,1.49226151]
[1718384492877,2.93996,3401.4,3400.3,0.72062915]
[1718384493044,2.93996,3401.4,3400.3,2.21288564]
[1718384493676,2.94014,3401.2,3400.3,2.21288564]
[1718384494381,2.94022,3401.1,3400.3,2.21288564]
[1718384495154,2.94033,3401.0,3400.3,0.72062915]
[1718384495745,2.94052,3400.8,3400.1,3.24673]
[1718384496551,2.94052,3400.8,3400.0,2.4673]
[1718384496764,2.94059,3400.7,3400.0,2.4673]
[1718384497937,5.4824,3400.9,3400.0,0.01]
[1718384497938,2.94108,3400.1,3400.0,0.01]
[1718384498364,11.91724,3400.1,3400.0,0.01]
[1718384499170,2.94172,3399.4,3398.9,0.1502585]
[1718384499756,2.94179,3399.3,3398.9,0.1502585]
[1718384499990,5.88408,3399.0,3398.9,0.1502585]
[1718384500689,8.82612,3399.0,3398.9,0.1502585]
[1718384500905,14.86216,3399.0,3398.9,0.1502585]
[1718384501121,18.25816,3399.0,3398.9,0.1502585]
[1718384501274,18.25816,3399.0,3397.2,2.2707]
[1718384501275,24.89689108,3399.0,3397.2,2.2707]
[1718384501615,5.88546,3398.2,3397.2,2.2707]
[1718384501977,2.94273,3398.2,3397.3,0.05886667]
[1718384502183,2.94265,3398.3,3397.3,0.05886667]
[1718384502377,2.94273,3398.2,3397.3,0.05886667]
[1718384502593,2.94247,3398.5,3397.3,0.05886667]
[1718384502795,3.53094,3398.5,3397.3,0.05886667]
[1718384502993,2.94256,3398.4,3397.3,0.05886667]
[1718384503197,0.58847,3398.5,3397.3,0.05886667]
[1718384503477,3.53101,3398.5,3397.3,0.05886667]
[1718384503788,2.94256,3398.4,3397.3,0.05886667]
[1718384503983,0.64735,3398.3,3397.3,0.05886667]
[1718384504187,5.88546,3398.2,3396.7,0.29336625]
[1718384504384,8.82819,3398.2,3396.6,3.0]
[1718384505176,5.88546,3398.2,3396.7,0.05886861]
[1718384505380,3.53102,3398.5,3397.3,2.415]
[1718384505615,2.94201,3399.1,3397.3,2.415]
[1718384505616,8.80942,3399.3,3397.4,0.05885961]
[1718384505778,2.94185,3399.3,3398.2,3.87964514]
[1718384505982,5.7847,3399.8,3398.2,3.87964514]
[1718384505983,5.7847,3399.8,3398.3,0.05884698]
[1718384506181,2.94161,3399.5,3398.3,0.05884698]
[1718384506692,2.94191,3399.2,3398.3,0.05884698]
[1718384506890,2.94218,3398.9,3398.2,2.4462]
[1718384507537,2.94194,3399.2,3398.3,0.05884907]
[1718384508120,2.94186,3399.2,3398.3,0.05884907]
[1718384508417,2.9418,3399.3,3398.3,0.05884907]
[1718384508621,2.9416,3399.5,3398.4,1.43344514]
[1718384508914,2.9416,3399.5,3398.5,0.05884221]
[1718384509125,2.9417,3399.4,3398.5,1.49228735]
[1718384509277,2.94179,3399.3,3398.5,1.49228735]
[1718384509476,2.94179,3399.3,3398.5,4.37584514]
[1718384509722,2.94197,3399.1,3398.4,2.94255]
[1718384510020,2.94187,3399.2,3398.5,2.94247]
[1718384510223,2.94187,3399.2,3398.6,2.94237]
[1718384510406,2.94135,3399.8,3399.0,2.942]
[1718384510580,3.235585,3399.7,3398.9,2.94212]
[1718384510783,7.31,3401.0,3399.1,2.3253]
[1718384511011,2.2944,3401.3,3399.8,2.94127]
[1718384511012,2.94075,3400.5,3399.8,2.94127]
[1718384511222,2.9404,3400.9,3399.7,2.94143]
[1718384511223,2.94083,3400.4,3399.7,2.94143]
[1718384511598,2.94096,3400.3,3399.5,2.9416]
[1718384511786,2.94106,3400.2,3399.5,4.37504514]
[1718384512317,3.529199,3400.2,3399.5,4.37503514]
[1718384512520,0.588189,3400.2,3399.5,1.43344514]
[1718384512681,2.9404,3400.9,3399.4,2.94169]
[1718384512882,2.94106,3400.2,3399.4,4.37513514]
[1718384513082,2.94109,3400.1,3399.4,4.37513514]
[1718384514195,2.94109,3400.1,3399.5,2.94159]
[1718384514995,2.94136,3399.8,3399.1,5.3253]
[1718384515192,2.94136,3399.8,3399.1,4.29127514]
[1718384515428,2.94145,3399.7,3399.2,3.0]
[1718384516840,2.94152,3399.6,3399.2,3.0]
[1718384517037,2.94161,3399.5,3398.4,2.2778]
[1718384517209,2.94161,3399.5,3398.5,1.43344514]
[1718384517409,2.94161,3399.5,3398.5,4.43344514]
[1718384517614,2.94161,3399.5,3398.1,0.006]
[1718384517615,3.094,3400.2,3398.1,0.006]
[1718384517943,2.2753,3400.3,3398.1,0.006]
[1718384517944,2.94249,3398.5,3398.1,0.006]
[1718384518098,2.94215,3398.9,3398.1,0.006]
[1718384518304,2.94171,3399.4,3398.1,0.006]
[1718384518504,6.33737,3399.8,3398.1,0.06484713]
[1718384518505,2.94214,3398.9,3398.1,0.06484713]
[1718384518736,2.94221,3398.8,3398.1,0.006]
[1718384519144,2.94238,3398.6,3398.1,0.006]
[1718384519442,2.94221,3398.8,3398.1,0.006]
[1718384519807,2.94232,3398.7,3398.1,0.006]
[1718384520207,2.94213,3398.9,3398.1,0.006]
[1718384520558,2.94224,3398.8,3398.1,0.006]
[1718384521244,2.94233,3398.7,3398.1,0.006]
[1718384521440,2.94238,3398.6,3398.1,0.006]
[1718384521739,2.94258,3398.4,3398.1,0.006]
[1718384522251,2.94238,3398.6,3398.1,0.006]
[1718384522405,2.94251,3398.5,3398.1,0.006]
[1718384522744,3.824905,3398.8,3398.1,0.006]
[1718384522963,2.94249,3398.5,3398.1,0.006]
[1718384523115,2.94247,3398.5,3398.1,0.006]
[1718384523301,2.94273,3398.2,3398.1,0.006]
[1718384523510,5.88546,3398.2,3398.1,0.006]
[1718384523717,2.94273,3398.2,3398.1,0.006]
[1718384524316,3.531268,3398.2,3398.1,0.006]
[1718384524853,6.473998,3398.2,3398.1,0.006]
[1718384525019,9.416728,3398.2,3398.1,0.006]
[1718384526556,3.094,3397.6,3395.3,2.363]
[1718384526853,2.94316,3397.7,3395.5,0.30957626]
[1718384526854,2.94454,3396.2,3395.5,0.30957626]
[1718384527057,2.94456,3396.1,3395.3,2.363]
[1718384527216,2.94456,3396.1,3395.5,1.43344514]
[1718384527413,5.37907,3397.0,3395.3,2.363]
[1718384527414,2.94473,3395.9,3395.3,2.363]
[1718384527728,2.94473,3395.9,3395.0,0.05]
[1718384528059,2.94472,3396.0,3395.0,0.05]
[1718384528353,2.94507,3395.5,3395.0,0.05]
[1718384529460,2.9443,3396.4,3395.0,0.10891121]
[1718384529661,2.4353,3397.0,3395.5,1.43344514]
[1718384529869,2.9438,3397.0,3395.5,1.49234301]
[1718384530026,2.94369,3397.1,3395.5,1.49234301]
[1718384530220,2.94396,3396.8,3395.6,0.16126015]
[1718384530422,3.396,3397.3,3395.7,1.49233009]
[1718384530622,2.94361,3397.2,3395.7,1.49233009]
[1718384531030,0.00602249,3395.9,3395.7,1.43344514]
[1718384531959,0.00602249,3395.9,3395.2,3.0]
[1718384532418,0.00602249,3395.9,3395.1,2.4755]
[1718384532419,2.94501,3395.6,3395.1,2.4755]
[1718384532756,0.00602249,3395.9,3395.4,1.55370364]
[1718384533533,2.94482,3395.8,3395.4,0.1202585]
[1718384533855,2.94507,3395.6,3395.4,0.1202585]
[1718384534621,2.9449,3395.7,3395.4,0.1202585]
[1718384534861,2.94499,3395.6,3395.4,0.1202585]
[1718384536070,0.00602249,3395.9,3395.4,0.1202585]
[1718384536424,0.00602249,3395.9,3395.6,2.4087]
[1718384536629,0.00602249,3395.9,3395.7,0.39624036]
[1718384537349,0.00602249,3395.9,3395.8,1.49233998]
[1718384537938,0.00602249,3395.9,3395.8,1.43344514]
[1718384539183,0.00602249,3395.9,3395.6,2.4087]
[1718384539382,2.9449,3395.7,3395.4,0.1202585]
[1718384539677,3.24015225,3395.6,3395.4,0.1202585]
[1718384539837,2.94507,3395.5,3395.4,0.1202585]
[1718384542615,11.78028,3395.5,3395.4,0.1202585]
[1718384542908,15.17628,3395.5,3395.4,0.1202585]
[1718384543483,8.83521,3395.5,3395.4,0.1202585]
[1718384543677,5.89014,3395.5,3395.4,0.1202585]
[1718384544278,2.94507,3395.5,3395.4,0.1202585]
[1718384544479,0.00602249,3395.9,3395.4,1.55370364]
[1718384544882,0.00602249,3395.9,3395.5,1.4921471]
[1718384545277,0.00602249,3395.9,3395.6,2.2978]
[1718384545482,0.00602249,3395.9,3395.7,1.81243985]
[1718384545881,0.00602249,3395.9,3395.8,0.05888534]
[1718384546082,0.00602249,3395.9,3395.8,1.49233048]
[1718384546291,4.45113614,3397.3,3395.9,2.1396]
[1718384546484,1.50760614,3397.3,3396.0,1.49232224]
[1718384546678,1.50760614,3397.3,3396.1,0.66319222]
[1718384546901,1.50760614,3397.3,3396.2,1.49232303]
[1718384547208,4.45111614,3397.3,3396.3,0.05887789]
[1718384547414,1.50760614,3397.3,3396.5,2.2861]
[1718384547618,1.50760614,3397.3,3396.6,1.49231478]
[1718384547771,1.50760614,3397.3,3396.7,0.73284148]
[1718384547969,1.50760614,3397.3,3396.8,1.43344514]
[1718384549172,1.50760614,3397.3,3396.9,0.05886966]
[1718384549511,1.50760614,3397.3,3397.0,1.43344514]
[1718384549813,1.50760614,3397.3,3397.1,0.05886828]
[1718384550011,0.61271223,3397.6,3397.3,2.4081]
[1718384550198,0.61271223,3397.6,3397.4,1.49230639]
[1718384550604,0.61271223,3397.6,3397.4,4.49230639]
[1718384551698,0.61271223,3397.6,3396.5,2.304]
[1718384551887,0.61271223,3397.6,3396.6,1.43344514]
[1718384552099,0.61271223,3397.6,3396.7,0.67374451]
[1718384552300,0.61271223,3397.6,3396.8,1.43344514]
[1718384552485,2.94341,3397.5,3396.8,1.43344514]
[1718384553379,2.94369,3397.1,3396.1,0.66319222]
[1718384553693,2.9436,3397.2,3396.2,1.43344514]
[1718384553881,2.94369,3397.1,3396.2,1.43344514]
[1718384554076,2.9436,3397.2,3396.2,1.43344514]
[1718384554310,2.94368,3397.1,3396.2,1.43344514]
[1718384554511,3.532401,3397.1,3396.2,1.43344514]
[1718384555879,2.9436,3397.2,3396.3,0.05887804]
[1718384556081,2.94303,3397.9,3396.4,1.43344514]
[1718384556285,2.94316,3397.7,3396.5,0.05887312]
[1718384556603,2.94316,3397.7,3396.6,1.43344514]
[1718384556924,2.94309,3397.8,3396.7,0.05887022]
[1718384557082,0.588599,3397.7,3396.8,1.4923142]
[1718384558442,3.531789,3397.7,3396.8,1.4923142]
[1718384558740,2.94325,3397.6,3396.8,1.4923142]
[1718384558949,16.1075,3398.8,3396.9,2.252]
[1718384559240,16.1075,3398.8,3397.0,1.43344514]
[1718384559241,2.94302,3397.9,3397.0,1.43344514]
[1718384559454,2.94326,3397.6,3397.0,1.43344514]
[1718384560204,2.94284,3398.1,3397.1,0.05886915]
[1718384560525,2.94284,3398.1,3397.1,1.49231429]
[1718384561045,2.94276,3398.2,3397.2,1.43344514]
[1718384561260,2.94268,3398.3,3397.3,0.2080914]
[1718384561434,2.94256,3398.4,3397.3,0.14923143]
[1718384561631,2.94274,3398.2,3397.3,0.14923143]
[1718384561832,2.94239,3398.6,3397.3,0.14923143]
[1718384561833,2.94247,3398.5,3397.4,0.05885793]
[1718384562422,2.94239,3398.6,3397.4,0.05885793]
[1718384562622,2.94239,3398.6,3397.5,1.43344514]
[1718384562924,2.94239,3398.6,3397.6,0.05885536]
[1718384563125,2.94239,3398.6,3397.7,1.43344514]
[1718384563332,2.94239,3398.6,3397.8,0.05885537]
[1718384563535,2.94239,3398.6,3397.8,1.49230051]
[1718384563737,2.94249,3398.5,3397.8,1.49230051]
[1718384564521,2.94249,3398.5,3397.8,1.43344514]
[1718384565945,2.9421,3399.0,3397.9,1.47574645]
[1718384566160,2.94193,3399.2,3397.9,1.47574645]
[1718384566369,2.94216,3398.9,3397.9,1.47574645]
[1718384567163,2.94284,3398.1,3397.3,0.14923143]
[1718384567362,2.94284,3398.1,3397.4,1.43344514]
[1718384567678,2.94291,3398.0,3397.4,1.43344514]
[1718384568469,2.943,3397.9,3397.4,1.43344514]
[1718384568738,2.94308,3397.8,3397.2,2.2664]
[1718384568950,2.943,3397.9,3397.3,1.43344514]
[1718384569965,2.94309,3397.8,3397.2,2.2664]
[1718384570139,2.94309,3397.8,3397.2,3.69984514]
[1718384570140,2.94315,3397.8,3397.2,3.69984514]
[1718384570473,3.237459,3397.8,3397.2,3.69984514]
[1718384571034,3.237459,3397.8,3396.0,3.094]
[1718384571035,3.237459,3397.8,3396.6,2.3016]
[1718384571356,2.94326,3397.6,3396.7,1.43344514]
[1718384571872,2.94342,3397.4,3396.7,1.43344514]
[1718384572168,3.532086,3397.4,3396.7,1.43344514]
[1718384572373,2.94359,3397.3,3396.0,2.3544]
[1718384572532,2.9437,3397.1,3396.1,1.43344514]
[1718384573034,2.94372,3397.1,3396.1,1.43344514]
[1718384574056,2.94389,3396.9,3396.1,1.43344514]
[1718384575376,2.94389,3396.9,3394.8,0.46046308]
[1718384575377,2.94385,3397.0,3395.5,2.3807]
[1718384575694,2.94429,3396.4,3395.6,1.43344514]
[1718384575986,2.94446,3396.2,3395.6,1.43344514]
[1718384576166,3.533344,3396.2,3395.6,1.43344514]
[1718384576386,2.94446,3396.2,3395.6,1.43344514]
[1718384576692,2.94459,3396.1,3395.6,1.43344514]
[1718384577055,2.94473,3395.9,3395.2,2.2512]
[1718384577394,2.94485,3395.8,3395.3,1.43344514]
[1718384577576,2.9449,3395.7,3395.3,1.43344514]
[1718384577778,2.9449,3395.7,3395.0,0.05]
[1718384577779,2.945,3395.6,3395.0,0.05]
[1718384578095,2.945,3395.6,3395.1,1.43344514]
[1718384578457,5.89084,3395.1,3395.0,0.05]
[1718384580682,2.94524,3395.3,3395.0,0.05]
[1718384580906,2.94537,3395.2,3395.0,0.05]
[1718384581070,2.94542,3395.1,3395.0,0.05]
[1718384581270,5.89084,3395.1,3395.0,0.05]
[1718384581470,2.94542,3395.1,3395.0,0.05]
[1718384582403,5.89084,3395.1,3395.0,0.05]
[1718384583602,2.94542,3395.1,3395.0,0.05]
[1718384583808,9.219159,3395.1,3395.0,0.05]
[1718384584367,12.219159,3395.1,3395.0,0.05]
[1718384584567,15.164579,3395.1,3395.0,0.05]
[1718384584769,18.109999,3395.1,3395.0,0.05]
[1718384585298,18.109999,3395.1,3393.2,6.5953322]
[1718384585299,2.94682,3393.5,3393.2,6.5953322]
[1718384585508,2.94698,3393.4,3392.4,2.4764]
[1718384585666,2.94698,3393.4,3392.5,1.43344514]
[1718384585863,2.94667,3393.7,3392.6,1.49238377]
[1718384586102,2.4562,3394.2,3392.6,1.49238377]
[1718384586103,2.94688,3393.5,3392.6,1.49238377]
[1718384586336,3.396,3394.3,3392.6,1.43344514]
[1718384586605,2.9468,3393.6,3392.6,1.82442965]
[1718384586801,2.9468,3393.6,3392.7,0.05893638]
[1718384586981,2.94664,3393.7,3392.8,1.43344514]
[1718384587377,2.94672,3393.6,3392.8,1.43344514]
[1718384587604,2.94692,3393.4,3392.8,1.43344514]
[1718384587768,2.94643,3394.0,3392.5,3.0]
[1718384587971,0.658603,3393.9,3392.6,1.43344514]
[1718384588200,2.94706,3393.3,3392.4,2.4764]
[1718384588412,2.94717,3393.1,3392.5,1.43344514]
[1718384588583,2.94733,3392.9,3392.5,1.43344514]
[1718384588988,2.94744,3392.8,3392.2,2.94793]
[1718384589192,2.94744,3392.8,3391.9,5.5668985]
[1718384589193,2.9475,3392.7,3391.9,0.1202585]
[1718384589501,2.94768,3392.5,3391.9,1.55370364]
[1718384589714,2.9475,3392.7,3391.9,1.55370364]
[1718384590020,2.94715,3393.2,3392.0,1.49240227]
[1718384590190,5.7978,3393.7,3392.1,2.94794]
[1718384590388,5.7978,3393.7,3392.0,4.38154514]
[1718384590389,2.94733,3392.9,3392.2,1.4923962]
[1718384590636,2.94725,3393.0,3392.3,2.94777]
[1718384590924,0.3,3393.3,3392.4,4.38120514]
[1718384591125,2.94693,3393.4,3392.7,2.94749]
[1718384591329,2.94681,3393.5,3392.8,2.94739]
[1718384591532,2.94639,3394.0,3392.9,1.49238811]
[1718384591743,2.94629,3394.1,3393.4,2.94688]
[1718384592038,2.94629,3394.1,3392.9,1.49238811]
[1718384592039,2.94686,3393.5,3392.9,1.43344514]
[1718384592340,2.94668,3393.7,3393.0,0.05893823]
[1718384592554,2.94673,3393.6,3393.0,4.43961337]
[1718384592827,2.94638,3394.0,3393.3,2.94695]
[1718384593028,3.599592,3394.0,3393.3,2.94695]
[1718384593415,2.94647,3393.9,3393.1,4.38051514]
[1718384593599,2.94657,3393.8,3393.2,3.00598547]
[1718384593797,2.94657,3393.8,3393.2,4.38049514]
[1718384594716,0.653212,3394.0,3393.3,2.94697]
[1718384594918,2.94629,3394.1,3393.5,2.9468]
[1718384595119,5.94589,3394.6,3394.0,2.94637]
[1718384595120,2.94587,3394.6,3394.0,2.94637]